[Event "Titled Tuesday Blitz July 13 2021"]
[White "Samsonkin, Artiom"]
[Black "Vivas Zamora, Fabian Ernesto"]
[WhiteFideId "13503111"]
[BlackFideId "3902480"]
[WhiteElo "2513"]
[BlackElo "1966"]
[Result "1-0"]
[Round "01"]
[TimeControl "180+1"]
[Date "2021.07.13"]
[WhiteClock "0:00:19"]
[BlackClock "0:00:07"]

1. e4 {[%clk 0:03:00]}  e5 {[%clk 0:02:55]} 2. Nf3 {[%clk 0:02:59]}  Nc6 {[%clk 0:02:54]} 3. d4 {[%clk 0:03:00]}  exd4 {[%clk 0:02:54]} 4. Bc4 {[%clk 0:03:00]}  Nf6 {[%clk 0:02:54]} 5. e5 {[%clk 0:03:00]}  d5 {[%clk 0:02:54]} 6. Bb5 {[%clk 0:03:00]}  Ne4 {[%clk 0:02:54]} 7. Nxd4 {[%clk 0:02:59]}  Bc5 {[%clk 0:02:53]} 8. Be3 {[%clk 0:02:56]}  O-O {[%clk 0:02:46]} 9. Nxc6 {[%clk 0:02:56]}  bxc6 {[%clk 0:02:45]} 10. Bxc5 {[%clk 0:02:57]}  Nxc5 {[%clk 0:02:44]} 11. Bxc6 {[%clk 0:02:57]}  Rb8 {[%clk 0:02:44]} 12. Qxd5 {[%clk 0:02:56]}  Qe7 {[%clk 0:02:43]} 13. O-O {[%clk 0:02:55]}  Rxb2 {[%clk 0:02:38]} 14. Nc3 {[%clk 0:02:55]}  Rd8 {[%clk 0:02:31]} 15. Qf3 {[%clk 0:02:48]}  Ne6 {[%clk 0:02:25]} 16. Qe3 {[%clk 0:02:31]}  Nd4 {[%clk 0:01:14]} 17. Be4 {[%clk 0:02:23]}  g6 {[%clk 0:01:01]} 18. Rad1 {[%clk 0:01:34]}  Ba6 {[%clk 0:00:25]} 19. Rfe1 {[%clk 0:01:04]}  Qxe5 {[%clk 0:00:13]} 20. f4 {[%clk 0:01:03]}  Qc5 {[%clk 0:00:10]} 21. Kh1 {[%clk 0:01:02]}  Rb4 {[%clk 0:00:05]} 22. Nd5 {[%clk 0:00:56]}  Rxd5 {[%clk 0:00:04]} 23. Bxd5 {[%clk 0:00:56]}  Qxd5 {[%clk 0:00:04]} 24. c3 {[%clk 0:00:55]}  Rb2 {[%clk 0:00:02]} 25. Rd2 {[%clk 0:00:49]}  Rxd2 {[%clk 0:00:02]} 26. Qxd2 {[%clk 0:00:50]}  Bb7 {[%clk 0:00:02]} 27. cxd4 {[%clk 0:00:49]}  c5 {[%clk 0:00:02]} 28. Re5 {[%clk 0:00:26]}  Qc4 {[%clk 0:00:02]} 29. Qe2 {[%clk 0:00:27]}  Qc1+ {[%clk 0:00:02]} 30. Qe1 {[%clk 0:00:27]}  Qxe1+ {[%clk 0:00:01]} 31. Rxe1 {[%clk 0:00:26]}  cxd4 {[%clk 0:00:02]} 32. Rd1 {[%clk 0:00:27]}  Bd5 {[%clk 0:00:02]} 33. a3 {[%clk 0:00:25]}  Bb3 {[%clk 0:00:02]} 34. Rxd4 {[%clk 0:00:26]}  a5 {[%clk 0:00:03]} 35. Kg1 {[%clk 0:00:24]}  a4 {[%clk 0:00:03]} 36. Kf2 {[%clk 0:00:24]}  Kg7 {[%clk 0:00:04]} 37. Ke3 {[%clk 0:00:25]}  h6 {[%clk 0:00:04]} 38. Rb4 {[%clk 0:00:25]}  Kf6 {[%clk 0:00:04]} 39. Rb5 {[%clk 0:00:23]}  Kg7 {[%clk 0:00:04]} 40. g3 {[%clk 0:00:22]}  Kf6 {[%clk 0:00:05]} 41. Kd4 {[%clk 0:00:23]}  Kg7 {[%clk 0:00:05]} 42. g4 {[%clk 0:00:23]}  Kf6 {[%clk 0:00:05]} 43. h4 {[%clk 0:00:23]}  Kg7 {[%clk 0:00:04]} 44. g5 {[%clk 0:00:20]}  hxg5 {[%clk 0:00:04]} 45. hxg5 {[%clk 0:00:21]}  Kf8 {[%clk 0:00:04]} 46. Rxb3 {[%clk 0:00:22]}  axb3 {[%clk 0:00:04]} 47. Kc3 {[%clk 0:00:22]}  Ke7 {[%clk 0:00:04]} 48. Kxb3 {[%clk 0:00:22]}  f6 {[%clk 0:00:04]} 49. a4 {[%clk 0:00:20]}  fxg5 {[%clk 0:00:05]} 50. fxg5 {[%clk 0:00:20]}  Ke6 {[%clk 0:00:04]} 51. Kc4 {[%clk 0:00:19]}  Kf5 {[%clk 0:00:05]} 52. a5 {[%clk 0:00:19]}  Kxg5 {[%clk 0:00:05]} 53. a6 {[%clk 0:00:20]}  Kf4 {[%clk 0:00:06]} 54. a7 {[%clk 0:00:21]}  g5 {[%clk 0:00:06]} 55. a8=Q {[%clk 0:00:22]}  g4 {[%clk 0:00:07]} 56. Qg2 {[%clk 0:00:19]} 1-0


[Site "https://www.chess.com"]

[Event "Titled Tuesday Blitz July 13 2021"]
[White "Sawyer, Bradley"]
[Black "Djordjevic, Vuk"]
[WhiteFideId "2023784"]
[BlackFideId "902098"]
[WhiteElo "2328"]
[BlackElo "2463"]
[Result "0-1"]
[Round "01"]
[TimeControl "180+1"]
[Date "2021.07.13"]
[WhiteClock "0:00:14"]
[BlackClock "0:00:44"]

1. c4 {[%clk 0:02:59]}  e5 {[%clk 0:02:59]} 2. g3 {[%clk 0:02:58]}  Nc6 {[%clk 0:03:00]} 3. Bg2 {[%clk 0:02:58]}  g6 {[%clk 0:03:00]} 4. Nc3 {[%clk 0:02:58]}  Bg7 {[%clk 0:02:59]} 5. d3 {[%clk 0:02:58]}  d6 {[%clk 0:02:59]} 6. e3 {[%clk 0:02:58]}  Be6 {[%clk 0:02:59]} 7. Rb1 {[%clk 0:02:55]}  Qd7 {[%clk 0:02:59]} 8. b4 {[%clk 0:02:56]}  a6 {[%clk 0:02:58]} 9. a4 {[%clk 0:02:51]}  Nge7 {[%clk 0:02:55]} 10. b5 {[%clk 0:02:50]}  axb5 {[%clk 0:02:56]} 11. axb5 {[%clk 0:02:51]}  Nd8 {[%clk 0:02:56]} 12. Nge2 {[%clk 0:02:42]}  Bh3 {[%clk 0:02:55]} 13. Bxh3 {[%clk 0:02:36]}  Qxh3 {[%clk 0:02:56]} 14. Bd2 {[%clk 0:02:17]}  Qg2 {[%clk 0:02:50]} 15. Rg1 {[%clk 0:02:17]}  Qxh2 {[%clk 0:02:50]} 16. b6 {[%clk 0:02:18]}  c6 {[%clk 0:02:35]} 17. Ne4 {[%clk 0:02:18]}  Nf5 {[%clk 0:02:35]} 18. Ra1 {[%clk 0:01:56]}  Rxa1 {[%clk 0:02:32]} 19. Qxa1 {[%clk 0:01:57]}  O-O {[%clk 0:02:25]} 20. Qa3 {[%clk 0:01:25]}  d5 {[%clk 0:02:23]} 21. cxd5 {[%clk 0:01:19]}  cxd5 {[%clk 0:02:22]} 22. Nc5 {[%clk 0:01:14]}  h5 {[%clk 0:01:59]} 23. Rf1 {[%clk 0:00:34]}  h4 {[%clk 0:01:55]} 24. gxh4 {[%clk 0:00:34]}  Nxh4 {[%clk 0:01:52]} 25. Nc3 {[%clk 0:00:34]}  Nf3+ {[%clk 0:01:45]} 26. Kd1 {[%clk 0:00:34]}  Qh3 {[%clk 0:01:38]} 27. Re1 {[%clk 0:00:31]}  Qg4 {[%clk 0:01:32]} 28. Nxd5 {[%clk 0:00:24]}  Nxe1+ {[%clk 0:01:04]} 29. Kxe1 {[%clk 0:00:25]}  Qg1+ {[%clk 0:00:52]} 30. Ke2 {[%clk 0:00:25]}  Qg4+ {[%clk 0:00:53]} 31. Ke1 {[%clk 0:00:25]}  Kh8 {[%clk 0:00:46]} 32. Nd7 {[%clk 0:00:14]}  Qxd7 {[%clk 0:00:44]} 0-1


[Site "https://www.chess.com"]

[Event "Titled Tuesday Blitz July 13 2021"]
[White "Shkapenko, Pavel"]
[Black "Kolb, Tobias"]
[WhiteFideId "4151933"]
[BlackFideId "12992321"]
[WhiteElo "2386"]
[BlackElo "2110"]
[Result "1/2-1/2"]
[Round "01"]
[TimeControl "180+1"]
[Date "2021.07.13"]
[WhiteClock "0:00:22"]
[BlackClock "0:00:36"]

1. e4 {[%clk 0:02:59]}  c6 {[%clk 0:02:59]} 2. d4 {[%clk 0:02:59]}  d5 {[%clk 0:03:00]} 3. e5 {[%clk 0:02:59]}  c5 {[%clk 0:03:00]} 4. dxc5 {[%clk 0:02:59]}  e6 {[%clk 0:03:01]} 5. a3 {[%clk 0:02:59]}  Bxc5 {[%clk 0:03:01]} 6. b4 {[%clk 0:02:59]}  Be7 {[%clk 0:03:02]} 7. Qg4 {[%clk 0:03:00]}  g6 {[%clk 0:03:01]} 8. Bd3 {[%clk 0:02:49]}  a5 {[%clk 0:03:01]} 9. b5 {[%clk 0:02:49]}  Nd7 {[%clk 0:03:00]} 10. Nf3 {[%clk 0:02:49]}  Qc7 {[%clk 0:02:55]} 11. Bf4 {[%clk 0:02:39]}  h5 {[%clk 0:02:51]} 12. Qg3 {[%clk 0:02:37]}  h4 {[%clk 0:02:43]} 13. Qg4 {[%clk 0:02:34]}  Nh6 {[%clk 0:02:43]} 14. Bxh6 {[%clk 0:02:33]}  Rxh6 {[%clk 0:02:44]} 15. Qf4 {[%clk 0:02:33]}  g5 {[%clk 0:02:39]} 16. Qd4 {[%clk 0:02:29]}  Bc5 {[%clk 0:02:21]} 17. Qg4 {[%clk 0:01:54]}  Be7 {[%clk 0:01:38]} 18. Qd4 {[%clk 0:01:39]}  f6 {[%clk 0:01:38]} 19. exf6 {[%clk 0:01:03]}  Bxf6 {[%clk 0:01:39]} 20. Qe3 {[%clk 0:01:03]}  Bxa1 {[%clk 0:01:35]} 21. Qxg5 {[%clk 0:01:04]}  Rf6 {[%clk 0:01:28]} 22. Nbd2 {[%clk 0:00:55]}  Qf4 {[%clk 0:01:15]} 23. Qg8+ {[%clk 0:00:53]}  Ke7 {[%clk 0:01:11]} 24. O-O {[%clk 0:00:52]}  Nc5 {[%clk 0:01:08]} 25. Rxa1 {[%clk 0:00:49]}  Nxd3 {[%clk 0:01:07]} 26. cxd3 {[%clk 0:00:49]}  Rf8 {[%clk 0:00:58]} 27. Qg7+ {[%clk 0:00:41]}  Rf7 {[%clk 0:00:57]} 28. Qc3 {[%clk 0:00:41]}  Bd7 {[%clk 0:00:50]} 29. Qc5+ {[%clk 0:00:34]}  Qd6 {[%clk 0:00:48]} 30. Qd4 {[%clk 0:00:34]}  Qf4 {[%clk 0:00:39]} 31. Qc5+ {[%clk 0:00:33]}  Qd6 {[%clk 0:00:39]} 32. Qd4 {[%clk 0:00:27]}  Qf4 {[%clk 0:00:36]} 33. Qc5+ {[%clk 0:00:22]} 1/2-1/2


[Site "https://www.chess.com"]

[Event "Titled Tuesday Blitz July 13 2021"]
[White "Shtyka, Sergey"]
[Black "Yeletsky, Ivan"]
[WhiteFideId "4138465"]
[BlackFideId "24180327"]
[WhiteElo "2064"]
[BlackElo "2344"]
[Result "0-1"]
[Round "01"]
[TimeControl "180+1"]
[Date "2021.07.13"]
[WhiteClock "0:00:13"]
[BlackClock "0:01:23"]

1. e4 {[%clk 0:02:57]}  c5 {[%clk 0:02:59]} 2. Nf3 {[%clk 0:02:56]}  d6 {[%clk 0:02:58]} 3. d4 {[%clk 0:02:57]}  cxd4 {[%clk 0:02:58]} 4. Nxd4 {[%clk 0:02:57]}  Nf6 {[%clk 0:02:58]} 5. Nc3 {[%clk 0:02:51]}  a6 {[%clk 0:02:58]} 6. Bc4 {[%clk 0:02:48]}  e6 {[%clk 0:02:58]} 7. O-O {[%clk 0:02:48]}  Be7 {[%clk 0:02:55]} 8. Be3 {[%clk 0:02:48]}  b5 {[%clk 0:02:54]} 9. Bd3 {[%clk 0:02:48]}  O-O {[%clk 0:02:53]} 10. a3 {[%clk 0:02:48]}  Bb7 {[%clk 0:02:44]} 11. f4 {[%clk 0:02:47]}  Nbd7 {[%clk 0:02:44]} 12. Qf3 {[%clk 0:02:47]}  Nc5 {[%clk 0:02:41]} 13. Rae1 {[%clk 0:02:46]}  Rc8 {[%clk 0:02:38]} 14. Kh1 {[%clk 0:02:46]}  g6 {[%clk 0:02:24]} 15. Bf2 {[%clk 0:02:36]}  d5 {[%clk 0:02:18]} 16. e5 {[%clk 0:02:28]}  Nfe4 {[%clk 0:02:18]} 17. Nd1 {[%clk 0:02:25]}  Nd2 {[%clk 0:02:15]} 18. Qh3 {[%clk 0:02:18]}  Nxf1 {[%clk 0:02:15]} 19. Rxf1 {[%clk 0:02:16]}  Nxd3 {[%clk 0:02:09]} 20. cxd3 {[%clk 0:02:16]}  Rc1 {[%clk 0:01:59]} 21. Be3 {[%clk 0:02:12]}  Rb1 {[%clk 0:01:57]} 22. f5 {[%clk 0:02:03]}  exf5 {[%clk 0:01:57]} 23. Bh6 {[%clk 0:01:52]}  Bc8 {[%clk 0:01:47]} 24. Bxf8 {[%clk 0:01:44]}  Bxf8 {[%clk 0:01:48]} 25. Qe3 {[%clk 0:01:41]}  Qc7 {[%clk 0:01:43]} 26. e6 {[%clk 0:01:29]}  Bxe6 {[%clk 0:01:39]} 27. Nxe6 {[%clk 0:01:28]}  Qe7 {[%clk 0:01:39]} 28. Nxf8 {[%clk 0:00:53]}  Rxd1 {[%clk 0:01:38]} 29. Qg1 {[%clk 0:00:53]}  Rxf1 {[%clk 0:01:37]} 30. Qxf1 {[%clk 0:00:52]}  Kxf8 {[%clk 0:01:38]} 31. h3 {[%clk 0:00:50]}  Qe3 {[%clk 0:01:37]} 32. Qd1 {[%clk 0:00:48]}  d4 {[%clk 0:01:37]} 33. Qc2 {[%clk 0:00:46]}  Kg7 {[%clk 0:01:37]} 34. a4 {[%clk 0:00:45]}  bxa4 {[%clk 0:01:36]} 35. Kh2 {[%clk 0:00:45]}  f4 {[%clk 0:01:31]} 36. h4 {[%clk 0:00:43]}  Qg3+ {[%clk 0:01:30]} 37. Kg1 {[%clk 0:00:42]}  Qe1+ {[%clk 0:01:31]} 38. Kh2 {[%clk 0:00:41]}  Qxh4+ {[%clk 0:01:32]} 39. Kg1 {[%clk 0:00:41]}  Qe1+ {[%clk 0:01:32]} 40. Kh2 {[%clk 0:00:41]}  Qe5 {[%clk 0:01:33]} 41. Kh1 {[%clk 0:00:40]}  h5 {[%clk 0:01:28]} 42. Qxa4 {[%clk 0:00:38]}  Qe1+ {[%clk 0:01:25]} 43. Kh2 {[%clk 0:00:38]}  Qg3+ {[%clk 0:01:25]} 44. Kh1 {[%clk 0:00:38]}  Qxd3 {[%clk 0:01:25]} 45. b4 {[%clk 0:00:35]}  Qe3 {[%clk 0:01:25]} 46. b5 {[%clk 0:00:33]}  axb5 {[%clk 0:01:24]} 47. Qxb5 {[%clk 0:00:32]}  d3 {[%clk 0:01:25]} 48. Qb2+ {[%clk 0:00:23]}  f6 {[%clk 0:01:25]} 49. Qb7+ {[%clk 0:00:22]}  Kh6 {[%clk 0:01:26]} 50. Qf7 {[%clk 0:00:17]}  d2 {[%clk 0:01:24]} 51. Qf8+ {[%clk 0:00:14]}  Kg5 {[%clk 0:01:24]} 52. g3 {[%clk 0:00:13]}  d1=Q+ {[%clk 0:01:23]} 0-1


[Site "https://www.chess.com"]

[Event "Titled Tuesday Blitz July 13 2021"]
[White "Sjugirov, Sanan"]
[Black "Kotepalli, Sai Nirupama"]
[WhiteFideId "4189302"]
[BlackFideId "5039444"]
[WhiteElo "2472"]
[BlackElo "2445"]
[Result "1-0"]
[Round "01"]
[TimeControl "180+1"]
[Date "2021.07.13"]
[WhiteClock "0:01:45"]
[BlackClock "0:00:53"]

1. e4 {[%clk 0:03:00]}  c5 {[%clk 0:02:55]} 2. Nf3 {[%clk 0:02:55]}  e6 {[%clk 0:02:55]} 3. d3 {[%clk 0:02:45]}  Nc6 {[%clk 0:02:53]} 4. g3 {[%clk 0:02:45]}  d5 {[%clk 0:02:52]} 5. Qe2 {[%clk 0:02:44]}  Nf6 {[%clk 0:02:51]} 6. Bg2 {[%clk 0:02:44]}  Be7 {[%clk 0:02:48]} 7. O-O {[%clk 0:02:42]}  O-O {[%clk 0:02:47]} 8. e5 {[%clk 0:02:41]}  Nd7 {[%clk 0:02:46]} 9. c4 {[%clk 0:02:39]}  Qc7 {[%clk 0:02:43]} 10. Re1 {[%clk 0:02:37]}  Nb6 {[%clk 0:02:39]} 11. Nc3 {[%clk 0:02:35]}  a6 {[%clk 0:02:36]} 12. Bf4 {[%clk 0:02:33]}  dxc4 {[%clk 0:02:31]} 13. dxc4 {[%clk 0:02:32]}  Bd7 {[%clk 0:02:26]} 14. b3 {[%clk 0:02:30]}  Rad8 {[%clk 0:02:22]} 15. h4 {[%clk 0:02:29]}  Nd4 {[%clk 0:02:20]} 16. Nxd4 {[%clk 0:02:28]}  cxd4 {[%clk 0:02:20]} 17. Ne4 {[%clk 0:02:28]}  Bc6 {[%clk 0:02:19]} 18. Nf6+ {[%clk 0:02:23]}  Kh8 {[%clk 0:02:11]} 19. Qh5 {[%clk 0:02:06]}  gxf6 {[%clk 0:02:09]} 20. exf6 {[%clk 0:02:07]}  Bd6 {[%clk 0:02:06]} 21. Bh6 {[%clk 0:02:07]}  Rg8 {[%clk 0:02:02]} 22. Bg7+ {[%clk 0:02:06]}  Rxg7 {[%clk 0:02:01]} 23. fxg7+ {[%clk 0:02:07]}  Kxg7 {[%clk 0:02:00]} 24. Bxc6 {[%clk 0:02:05]}  bxc6 {[%clk 0:01:56]} 25. c5 {[%clk 0:02:04]}  Bxg3 {[%clk 0:01:45]} 26. Qg5+ {[%clk 0:02:04]}  Kf8 {[%clk 0:01:39]} 27. Qxg3 {[%clk 0:02:03]}  Qxg3+ {[%clk 0:01:37]} 28. fxg3 {[%clk 0:02:03]}  Nd5 {[%clk 0:01:33]} 29. Rad1 {[%clk 0:02:03]}  Nb4 {[%clk 0:01:24]} 30. Rd2 {[%clk 0:02:02]}  Rd5 {[%clk 0:01:20]} 31. a3 {[%clk 0:02:00]}  Rxc5 {[%clk 0:01:13]} 32. axb4 {[%clk 0:02:00]}  Rd5 {[%clk 0:01:13]} 33. Ra1 {[%clk 0:01:59]}  e5 {[%clk 0:01:12]} 34. Rxa6 {[%clk 0:01:58]}  e4 {[%clk 0:01:11]} 35. Rxc6 {[%clk 0:01:51]}  e3 {[%clk 0:01:07]} 36. Rd3 {[%clk 0:01:50]}  Rf5 {[%clk 0:00:56]} 37. Rxd4 {[%clk 0:01:46]}  e2 {[%clk 0:00:55]} 38. Rc8+ {[%clk 0:01:45]}  Kg7 {[%clk 0:00:53]} 39. Rc1 {[%clk 0:01:45]} 1-0


[Site "https://www.chess.com"]

[Event "Titled Tuesday Blitz July 13 2021"]
[White "Sonis, Francesco"]
[Black "Petrova, Irina"]
[WhiteFideId "895733"]
[BlackFideId "14124122"]
[WhiteElo "2373"]
[BlackElo "2022"]
[Result "1-0"]
[Round "01"]
[TimeControl "180+1"]
[Date "2021.07.13"]
[WhiteClock "0:00:52"]
[BlackClock "0:00:08"]

1. e4 {[%clk 0:02:58]}  d6 {[%clk 0:02:58]} 2. d4 {[%clk 0:02:58]}  Nf6 {[%clk 0:02:59]} 3. Nc3 {[%clk 0:02:57]}  e5 {[%clk 0:02:59]} 4. Nf3 {[%clk 0:02:53]}  Nbd7 {[%clk 0:02:58]} 5. Bc4 {[%clk 0:02:52]}  Be7 {[%clk 0:02:58]} 6. a4 {[%clk 0:02:50]}  O-O {[%clk 0:02:56]} 7. Ba2 {[%clk 0:02:48]}  c6 {[%clk 0:02:56]} 8. O-O {[%clk 0:02:39]}  h6 {[%clk 0:02:56]} 9. h3 {[%clk 0:02:35]}  Re8 {[%clk 0:02:55]} 10. dxe5 {[%clk 0:02:27]}  Nxe5 {[%clk 0:02:46]} 11. Nd4 {[%clk 0:02:23]}  c5 {[%clk 0:02:07]} 12. Nde2 {[%clk 0:02:21]}  Be6 {[%clk 0:02:06]} 13. Nf4 {[%clk 0:02:13]}  Bxa2 {[%clk 0:02:04]} 14. Rxa2 {[%clk 0:02:14]}  Bf8 {[%clk 0:01:53]} 15. Re1 {[%clk 0:02:12]}  Nc6 {[%clk 0:01:35]} 16. Ra3 {[%clk 0:02:00]}  Nb4 {[%clk 0:01:34]} 17. Nfd5 {[%clk 0:01:56]}  Nfxd5 {[%clk 0:01:33]} 18. Nxd5 {[%clk 0:01:56]}  Nxd5 {[%clk 0:01:25]} 19. Qxd5 {[%clk 0:01:56]}  Rb8 {[%clk 0:01:20]} 20. Bf4 {[%clk 0:01:54]}  Qf6 {[%clk 0:01:20]} 21. Bc1 {[%clk 0:01:47]}  Qe5 {[%clk 0:01:12]} 22. Rd3 {[%clk 0:01:44]}  b6 {[%clk 0:01:02]} 23. b3 {[%clk 0:01:31]}  Re6 {[%clk 0:00:53]} 24. Qxe5 {[%clk 0:01:29]}  dxe5 {[%clk 0:00:46]} 25. Red1 {[%clk 0:01:29]}  a6 {[%clk 0:00:39]} 26. Rd8 {[%clk 0:01:27]}  Re8 {[%clk 0:00:34]} 27. Rxe8 {[%clk 0:01:16]}  Rxe8 {[%clk 0:00:34]} 28. Rd5 {[%clk 0:01:15]}  f6 {[%clk 0:00:30]} 29. Be3 {[%clk 0:01:11]}  Kf7 {[%clk 0:00:21]} 30. a5 {[%clk 0:01:07]}  Rb8 {[%clk 0:00:15]} 31. axb6 {[%clk 0:01:03]}  Rxb6 {[%clk 0:00:16]} 32. Bxc5 {[%clk 0:01:03]}  Bxc5 {[%clk 0:00:17]} 33. Rxc5 {[%clk 0:01:03]}  Ke6 {[%clk 0:00:18]} 34. f3 {[%clk 0:01:00]}  g6 {[%clk 0:00:16]} 35. Kf2 {[%clk 0:00:59]}  f5 {[%clk 0:00:16]} 36. Ke3 {[%clk 0:00:58]}  f4+ {[%clk 0:00:16]} 37. Kd3 {[%clk 0:00:58]}  Kd6 {[%clk 0:00:10]} 38. Rd5+ {[%clk 0:00:57]}  Ke6 {[%clk 0:00:10]} 39. Ra5 {[%clk 0:00:57]}  Rc6 {[%clk 0:00:09]} 40. c4 {[%clk 0:00:55]}  Kf6 {[%clk 0:00:08]} 41. c5 {[%clk 0:00:54]}  Kg5 {[%clk 0:00:08]} 42. Kc4 {[%clk 0:00:54]}  Kh4 {[%clk 0:00:06]} 43. Kd5 {[%clk 0:00:54]}  Rc8 {[%clk 0:00:06]} 44. Rxa6 {[%clk 0:00:53]}  Kg3 {[%clk 0:00:07]} 45. Rxg6+ {[%clk 0:00:52]}  Kf2 {[%clk 0:00:08]} 46. b4 {[%clk 0:00:52]} 1-0


[Site "https://www.chess.com"]

[Event "Titled Tuesday Blitz July 13 2021"]
[White "Stribuk, Artiom"]
[Black "Salazar Olchowski, Gabriel Anton"]
[WhiteFideId "13515659"]
[BlackFideId "3920747"]
[WhiteElo "2224"]
[BlackElo "1892"]
[Result "1-0"]
[Round "01"]
[TimeControl "180+1"]
[Date "2021.07.13"]
[WhiteClock "0:01:02"]
[BlackClock "0:00:15"]

1. d4 {[%clk 0:02:58]}  Nf6 {[%clk 0:02:58]} 2. c4 {[%clk 0:02:55]}  c5 {[%clk 0:02:59]} 3. Nf3 {[%clk 0:02:54]}  g6 {[%clk 0:02:58]} 4. d5 {[%clk 0:02:52]}  b5 {[%clk 0:02:56]} 5. cxb5 {[%clk 0:02:52]}  a6 {[%clk 0:02:56]} 6. bxa6 {[%clk 0:02:49]}  Bg7 {[%clk 0:02:55]} 7. Nc3 {[%clk 0:02:49]}  O-O {[%clk 0:02:55]} 8. g3 {[%clk 0:02:50]}  Qa5 {[%clk 0:02:49]} 9. Bd2 {[%clk 0:02:48]}  d6 {[%clk 0:02:43]} 10. Bg2 {[%clk 0:02:48]}  Nbd7 {[%clk 0:02:42]} 11. O-O {[%clk 0:02:44]}  Nb6 {[%clk 0:02:42]} 12. b3 {[%clk 0:02:30]}  Qxa6 {[%clk 0:02:34]} 13. e4 {[%clk 0:02:18]}  Bb7 {[%clk 0:01:49]} 14. Qc2 {[%clk 0:01:57]}  Qa3 {[%clk 0:01:41]} 15. Nb5 {[%clk 0:01:52]}  Qa6 {[%clk 0:01:23]} 16. Nc7 {[%clk 0:01:51]}  Qa7 {[%clk 0:01:23]} 17. Nxa8 {[%clk 0:01:50]}  Rxa8 {[%clk 0:01:24]} 18. Bc3 {[%clk 0:01:48]}  Ba6 {[%clk 0:01:23]} 19. Rfe1 {[%clk 0:01:46]}  Qb7 {[%clk 0:01:08]} 20. Rad1 {[%clk 0:01:30]}  Nbd7 {[%clk 0:01:00]} 21. e5 {[%clk 0:01:27]}  Nxd5 {[%clk 0:00:20]} 22. Ng5 {[%clk 0:01:16]}  N7b6 {[%clk 0:00:20]} 23. Ba1 {[%clk 0:01:09]}  h6 {[%clk 0:00:20]} 24. Ne4 {[%clk 0:01:08]}  dxe5 {[%clk 0:00:19]} 25. Nxc5 {[%clk 0:01:07]}  Qc6 {[%clk 0:00:19]} 26. Bxe5 {[%clk 0:01:04]}  Rc8 {[%clk 0:00:19]} 27. Bxg7 {[%clk 0:01:03]}  Kxg7 {[%clk 0:00:19]} 28. Qb2+ {[%clk 0:01:03]}  Kg8 {[%clk 0:00:18]} 29. Nxa6 {[%clk 0:01:04]}  Nc3 {[%clk 0:00:17]} 30. Rc1 {[%clk 0:01:01]}  Ne2+ {[%clk 0:00:14]} 31. Qxe2 {[%clk 0:01:01]}  Qxc1 {[%clk 0:00:14]} 32. Rxc1 {[%clk 0:01:02]}  Rxc1+ {[%clk 0:00:14]} 33. Bf1 {[%clk 0:01:03]}  Nd5 {[%clk 0:00:15]} 34. Qd2 {[%clk 0:01:02]} 1-0


[Site "https://www.chess.com"]

[Event "Titled Tuesday Blitz July 13 2021"]
[White "Tsotsonava, Elene"]
[Black "Ozen, Bahadir"]
[WhiteFideId "13615939"]
[BlackFideId "6337058"]
[WhiteElo "1847"]
[BlackElo "2503"]
[Result "0-1"]
[Round "01"]
[TimeControl "180+1"]
[Date "2021.07.13"]
[WhiteClock "0:02:37"]
[BlackClock "0:02:37"]

1. e4 {[%clk 0:03:00]}  c6 {[%clk 0:02:59]} 2. d4 {[%clk 0:02:59]}  d5 {[%clk 0:02:59]} 3. e5 {[%clk 0:02:59]}  Bf5 {[%clk 0:02:57]} 4. h4 {[%clk 0:03:00]}  Qc8 {[%clk 0:02:55]} 5. Bd3 {[%clk 0:02:55]}  Bxd3 {[%clk 0:02:41]} 6. Qxd3 {[%clk 0:02:55]}  e6 {[%clk 0:02:42]} 7. h5 {[%clk 0:02:44]}  h6 {[%clk 0:02:41]} 8. f4 {[%clk 0:02:41]}  c5 {[%clk 0:02:40]} 9. c3 {[%clk 0:02:41]}  cxd4 {[%clk 0:02:40]} 10. cxd4 {[%clk 0:02:42]}  Qxc1+ {[%clk 0:02:39]} 11. Kf2 {[%clk 0:02:38]}  Qxb2+ {[%clk 0:02:37]} 12. Nd2 {[%clk 0:02:37]} 0-1


[Site "https://www.chess.com"]

[Event "Titled Tuesday Blitz July 13 2021"]
[White "Vasquez Schroeder, Rodrigo"]
[Black "Begunov, Konstantin"]
[WhiteFideId "3400042"]
[BlackFideId "4118510"]
[WhiteElo "2572"]
[BlackElo "2262"]
[Result "1-0"]
[Round "01"]
[TimeControl "180+1"]
[Date "2021.07.13"]
[WhiteClock "0:01:10"]
[BlackClock "0:00:08"]

1. e4 {[%clk 0:03:00]}  c5 {[%clk 0:02:57]} 2. Nf3 {[%clk 0:03:00]}  d6 {[%clk 0:02:57]} 3. d4 {[%clk 0:03:01]}  cxd4 {[%clk 0:02:57]} 4. Nxd4 {[%clk 0:03:02]}  Nf6 {[%clk 0:02:57]} 5. Nc3 {[%clk 0:03:02]}  a6 {[%clk 0:02:58]} 6. Bg5 {[%clk 0:03:02]}  e6 {[%clk 0:02:58]} 7. f4 {[%clk 0:03:02]}  Qb6 {[%clk 0:02:51]} 8. Bxf6 {[%clk 0:03:02]}  gxf6 {[%clk 0:02:51]} 9. Qd2 {[%clk 0:03:02]}  Nc6 {[%clk 0:02:50]} 10. Nb3 {[%clk 0:03:02]}  Be7 {[%clk 0:02:47]} 11. Be2 {[%clk 0:03:03]}  O-O {[%clk 0:02:47]} 12. O-O-O {[%clk 0:02:59]}  Kh8 {[%clk 0:02:47]} 13. Rhf1 {[%clk 0:02:58]}  Rg8 {[%clk 0:02:46]} 14. Bh5 {[%clk 0:02:58]}  Rg7 {[%clk 0:02:45]} 15. Rf3 {[%clk 0:02:57]}  Na5 {[%clk 0:02:36]} 16. Qe2 {[%clk 0:02:44]}  Nxb3+ {[%clk 0:02:31]} 17. cxb3 {[%clk 0:02:35]}  Bd7 {[%clk 0:02:27]} 18. Rg3 {[%clk 0:02:30]}  Rag8 {[%clk 0:02:21]} 19. Rxg7 {[%clk 0:02:30]}  Rxg7 {[%clk 0:02:21]} 20. g3 {[%clk 0:02:30]}  Bc6 {[%clk 0:02:03]} 21. Kb1 {[%clk 0:02:27]}  Qa5 {[%clk 0:01:58]} 22. a3 {[%clk 0:02:25]}  Qb6 {[%clk 0:01:19]} 23. b4 {[%clk 0:02:25]}  Qc7 {[%clk 0:00:51]} 24. Rc1 {[%clk 0:02:20]}  Qd7 {[%clk 0:00:51]} 25. Rd1 {[%clk 0:02:15]}  b5 {[%clk 0:00:49]} 26. Qd3 {[%clk 0:02:08]}  Qb7 {[%clk 0:00:47]} 27. f5 {[%clk 0:02:05]}  Qb6 {[%clk 0:00:36]} 28. Qd4 {[%clk 0:01:46]}  Qxd4 {[%clk 0:00:36]} 29. Rxd4 {[%clk 0:01:47]}  Kg8 {[%clk 0:00:31]} 30. Kc2 {[%clk 0:01:43]}  Kf8 {[%clk 0:00:31]} 31. Kd3 {[%clk 0:01:38]}  e5 {[%clk 0:00:26]} 32. Rd5 {[%clk 0:01:38]}  Bxd5 {[%clk 0:00:26]} 33. Nxd5 {[%clk 0:01:39]}  Bd8 {[%clk 0:00:25]} 34. Be2 {[%clk 0:01:36]}  Ke8 {[%clk 0:00:23]} 35. Ke3 {[%clk 0:01:32]}  Kd7 {[%clk 0:00:23]} 36. Kf3 {[%clk 0:01:28]}  Rg8 {[%clk 0:00:20]} 37. b3 {[%clk 0:01:27]}  Be7 {[%clk 0:00:20]} 38. Ke3 {[%clk 0:01:25]}  Rb8 {[%clk 0:00:20]} 39. Kd2 {[%clk 0:01:25]}  Kd8 {[%clk 0:00:19]} 40. Bh5 {[%clk 0:01:22]}  Ke8 {[%clk 0:00:18]} 41. a4 {[%clk 0:01:22]}  Rc8 {[%clk 0:00:17]} 42. Be2 {[%clk 0:01:21]}  bxa4 {[%clk 0:00:15]} 43. bxa4 {[%clk 0:01:21]}  Rb8 {[%clk 0:00:15]} 44. Bxa6 {[%clk 0:01:20]}  Bd8 {[%clk 0:00:14]} 45. a5 {[%clk 0:01:17]}  Ra8 {[%clk 0:00:13]} 46. Bb7 {[%clk 0:01:16]}  Ra7 {[%clk 0:00:12]} 47. a6 {[%clk 0:01:16]}  Kd7 {[%clk 0:00:12]} 48. b5 {[%clk 0:01:16]}  h5 {[%clk 0:00:12]} 49. b6 {[%clk 0:01:12]}  Bxb6 {[%clk 0:00:09]} 50. Nxb6+ {[%clk 0:01:12]}  Kc7 {[%clk 0:00:08]} 51. Nd5+ {[%clk 0:01:12]}  Kd7 {[%clk 0:00:08]} 52. Kd3 {[%clk 0:01:10]} 1-0


[Site "https://www.chess.com"]